Cogmind - Beta 13 @@@ ROGUE MODE // 2024.06.18 @ 02:54:10 Player: Kerstop Result: Destroyed by H-55 Commando with Assault Rifle Performance ------------- Evolutions (2) 1000 Regions Visited (4) 800 Robots Destroyed (12) 60 Value Destroyed (259) 259 Prototype IDs (0) 0 Alien Tech Used (0) 0 Bonus (0) 0 TOTAL SCORE: 2119 Bonus ------- None Cogmind --------- Core Integrity 0/550 Matter 270/300 Energy 76/100 System Corruption 2% Temperature Cool (0) Movement Walking (130) Location -8/Materials Parts ------- > --- POWER (1) -------- (None) > --- PROPULSION (3) --- Titanium Leg > --- UTILITY (4) ------ Terrain Scanner System Shield > --- WEAPON (3) ------- (None) > --- INVENTORY (5) ---- Compact Wheel Flight Unit ECM Suite Peak State ------------ > --- POWER ------------ Light Ion Engine > --- PROPULSION ------- Flight Unit Flight Unit Flight Unit > --- UTILITY ---------- Small Storage Unit Improved Terrain Scanner ECM Suite System Shield > --- WEAPON ----------- Medium Laser Light Assault Rifle > --- INVENTORY -------- Compact Wheel Flight Unit ECM Suite [Rating: 14] Favorites ----------- Power Light Ion Engine Engine Light Ion Engine Propulsion Flight Unit Leg Titanium Leg Wheel Compact Wheel Flight Unit Flight Unit Utility ECM Suite Device ECM Suite Storage Large Storage Unit Hackware System Shield Weapon Medium Laser Energy Gun Medium Laser Ballistic Gun Light Assault Rifle Build | -11 -10 -9 -9 -8 ------- Run | Yrd Mat Mat Min Mat Slots Evolved 4 | . . 2 . 2 Power . | . . . . . Propulsion 1 | . . 1 . . Utility 2 | . . 1 . 1 Weapon 1 | . . . . 1 Parts Attached 32 | 6 12 1 8 5 Power 6 | 1 3 1 1 . Engine 6 | 1 3 1 1 . Core . | . . . . . Reactor . | . . . . . Propulsion 11 | 2 4 . 4 1 Treads . | . . . . . Leg 1 | . . . . 1 Wheel 6 | 2 4 . . . Hover . | . . . . . Flight 4 | . . . 4 . Utility 8 | 1 2 . 1 4 Device 3 | . 1 . 1 1 Storage 3 | 1 1 . . 1 Processor . | . . . . . Hackware 2 | . . . . 2 Protection . | . . . . . Artifact . | . . . . . Weapon 7 | 2 3 . 2 . Energy Gun 6 | 2 3 . 1 . Energy Cannon . | . . . . . Ballistic Gun 1 | . . . 1 . Ballistic Cannon . | . . . . . Launcher . | . . . . . Special Weapon . | . . . . . Impact Weapon . | . . . . . Slashing Weapon . | . . . . . Piercing Weapon . | . . . . . Special Melee Weapon . | . . . . . Unidentified Prototypes . | . . . . . Parts Lost 16 | . 1 3 2 10 Power 3 | . . 1 1 1 Propulsion 5 | . 1 1 . 3 Utility 4 | . . . . 4 Weapon 4 | . . 1 1 2 Highest Loss Streak 9 | . 1 2 1 9 To Critical Strikes . | . . . . . Average Slot Usage (%) 77 | . 94 67 80 49 Engine 9 | . 13 9 8 4 Wheel 12 | . 26 16 1 . Flight 10 | . . . 28 13 Device 13 | . 11 11 20 9 Storage 9 | . 14 11 2 7 Energy Gun 17 | . 27 19 11 4 Ballistic Gun 3 | . . . 9 4 Naked Turns 12 | . . . . 12 Heaviest Build 32 | 12 32 31 25 14 Greatest Support 26 | 26 26 26 16 17 Greatest Overweight (x) 8 | . 8 1 3 1 Average Overweight (x) . | . . 1 . . Largest Inventory Capacity 15 | 8 15 15 15 8 Average Capacity 10 | 6 13 15 6 7 Most Carried 9 | 4 9 8 8 3 Average Carried 4 | 1 5 7 3 3 Final Capacity 15 | 8 15 15 5 5 Final Carried 8 | 3 8 7 3 3 Class Distribution -------------------- 66% | Mutant 33% | Scavenger-Mutant Dominant Class ---------------- Mutant | -10/Materials Mutant | -9/Materials Scavenger-Mutant | -9/Mines Scavenger-Mutant | -8/Materials Resources | -11 -10 -9 -9 -8 ----------- Run | Yrd Mat Mat Min Mat Matter Collected 399 | 259 121 5 14 . Remotely . | . . . . . Salvage Created 340 | . 66 172 42 60 Parts 21 | . 8 8 4 1 Haulers Intercepted 1 | . 1 . . . Recyclers Shooed 1 | . . . 1 . Parts Field Recycled . | . . . . . Retrieved Matter . | . . . . . Parts Self-Destructed . | . . . . . Prevented . | . . . . . Kills | -11 -10 -9 -9 -8 ------- Run | Yrd Mat Mat Min Mat Combat Hostiles Destroyed 8 | . 1 3 3 1 Guns 7 | . 1 3 3 . Classes Destroyed 7 | . 3 4 . . Builder 1 | . . 1 . . Tunneler 1 | . 1 . . . Hauler 1 | . 1 . . . Watcher 1 | . . 1 . . Swarmer 4 | . 1 . 3 . Grunt 1 | . . 1 . . Sentry 3 | . . 2 . 1 Best Kill Streak 4 | . 2 4 2 1 Combat Bots Only 2 | . 1 2 2 1 Max Kills in Single Turn 2 | . 2 2 1 1 Gunslinging . | . . . . . Exploded . | . . . . . Melee . | . . . . . Uniques/NPCs Destroyed . | . . . . . Combat | -11 -10 -9 -9 -8 -------- Run | Yrd Mat Mat Min Mat Hostile Shots Fired 175 | . 14 29 38 94 Missed 52 | . 3 9 13 27 Damage Taken 1639 | . 100 282 206 1051 Core 761 | . 26 106 74 555 Absorbed by Shields . | . . . . . Core Remaining (%) 81 | 100 89 . 55 . Volleys Fired 46 | . 9 10 20 7 Largest 2 | . 2 2 1 2 Hottest 100 | . 100 100 50 70 Shots Fired 67 | . 18 18 20 11 Gun 67 | . 18 18 20 11 Cannon . | . . . . . Launcher . | . . . . . Special . | . . . . . Kinetic 4 | . . . . 4 Thermal 63 | . 18 18 20 7 Explosive . | . . . . . Electromagnetic . | . . . . . Robot Hit Streak 10 | . 7 3 2 10 Robot Miss Streak 8 | . 8 3 5 1 Penetration Max . | . . . . . Secondary Targets . | . . . . . Shots Hit Robots 32 | . 8 8 6 10 Core Hits 22 | . 3 6 3 10 Critical Kills . | . . . . . Critical Parts Destroyed . | . . . . . Critical Strikes 5 | . 1 2 1 1 Burn 5 | . 1 2 1 1 Melee Attacks . | . . . . . Impact . | . . . . . Slashing . | . . . . . Piercing . | . . . . . Sneak Attacks . | . . . . . Combat Hostiles . | . . . . . Follow-up Attacks . | . . . . . Damage Inflicted 664 | . 110 297 100 157 Guns 447 | . 110 127 100 110 Cannons . | . . . . . Explosions 170 | . . 170 . . Melee . | . . . . . Ramming 47 | . . . . 47 Kinetic 34 | . . . . 34 Thermal 583 | . 110 297 100 76 Explosive . | . . . . . Electromagnetic . | . . . . . Impact . | . . . . . Slashing . | . . . . . Piercing . | . . . . . Highest Corruption 2 | . . . . 2 Average Corruption 2 | . . . . 2 Corruption Purged . | . . . . . Corruption Blocked . | . . . . . Effects 2 | . . . . 2 Heat Flow Errors 1 | . . . . 1 Energy Discharges 1 | . . . . 1 Overload Shots . | . . . . . Overflow Damage 65 | . . 65 . . Projectiles . | . . . . . Explosions 65 | . . 65 . . Melee . | . . . . . Knockbacks . | . . . . . Impact . | . . . . . Kinetic . | . . . . . Secondary . | . . . . . Self-Inflicted Damage 20 | . . . . 20 Shots . | . . . . . Rammed 14 | . . . . 14 Targets Rammed 14 | . . . . 14 Kicked . | . . . . . Crushed . | . . . . . Highest Temperature 195 | . 195 81 4 159 Average Temperature 68 | . 92 34 2 78 Received Heat Transfer 498 | . 6 69 9 414 Siege Activations . | . . . . . Robots Corrupted . | . . . . . Combat Hostiles . | . . . . . Parts Fried . | . . . . . Impact Corruptions . | . . . . . Robots Melted 2 | . 1 . . 1 Combat Hostiles 1 | . . . . 1 Parts Melted 2 | . 2 . . . Heat Transferred 1691 | . 407 618 370 296 Parts Sabotaged . | . . . . . Parts Stolen . | . . . . . Parts Stripped . | . . . . . Power Chain Reactions . | . . . . . Alert | -11 -10 -9 -9 -8 ------- Run | Yrd Mat Mat Min Mat Peak Influence 170 | . 57 170 146 101 Initial 66 | . . 24 66 56 Average 60 | . 4 78 143 59 Maximum Alert Level . | . . . . . Low Security (%) 100 | 100 100 100 100 100 Level 1 . | . . . . . Level 2 . | . . . . . Level 3 . | . . . . . Level 4 . | . . . . . Level 5 . | . . . . . High Security . | . . . . . Max Security . | . . . . . Squads Dispatched 1 | . . 1 . . Investigation 1 | . . 1 . . Extermination . | . . . . . Reinforcement . | . . . . . Assault . | . . . . . Garrison . | . . . . . Intercept . | . . . . . Searches Triggered . | . . . . . Construction Impeded . | . . . . . Haulers Reinforced . | . . . . . Active Scanning Responses . | . . . . . Cargo Convoy Interrupts . | . . . . . Stealth | -11 -10 -9 -9 -8 --------- Run | Yrd Mat Mat Min Mat Distress Signals 5 | . 3 1 . 1 Communications Jammed . | . . . . . Distress Signals . | . . . . . Times Spotted 31 | . 8 7 6 10 Peak Tracking Total 8 | . 3 4 4 8 Tactical Retreats 4 | . 3 . . 1 Traps | -11 -10 -9 -9 -8 ------- Run | Yrd Mat Mat Min Mat Traps Triggered 6 | . 5 1 . . Indirectly . | . . . . . Trap Hack Attempts . | . . . . . Triggered . | . . . . . Disarmed . | . . . . . Reprogrammed . | . . . . . Reused . | . . . . . Traps Extracted . | . . . . . Installed . | . . . . . Triggered . | . . . . . Machines | -11 -10 -9 -9 -8 ---------- Run | Yrd Mat Mat Min Mat Machines Disabled 2 | . . 1 1 . Max in Single Turn 1 | . . 1 1 . Machines Repaired . | . . . . . Machines Dismantled . | . . . . . Machines Sabotaged . | . . . . . Overloaded Fab Kills . | . . . . . Hacking | -11 -10 -9 -9 -8 --------- Run | Yrd Mat Mat Min Mat Machines Accessed 3 | . 1 1 . 1 Terminals 3 | . 1 1 . 1 Fabricators . | . . . . . Repair Stations . | . . . . . Recycling Units . | . . . . . Scanalyzers . | . . . . . Garrison Access . | . . . . . Total Hacks 8 | . 1 4 . 3 Successful 1 | . . 1 . . Failed 7 | . 1 3 . 3 Catastrophic 2 | . 1 1 . . Database Lockouts . | . . . . . Manual 6 | . 1 3 . 2 Terminals 8 | . 1 4 . 3 Fabricators . | . . . . . Repair Stations . | . . . . . Recycling Units . | . . . . . Scanalyzers . | . . . . . Garrison Access . | . . . . . Terminal Hacks 1 | . . 1 . . Dispatch Records 1 | . . 1 . . Fabricator Hacks . | . . . . . Repair Station Hacks . | . . . . . Recycling Unit Hacks . | . . . . . Scanalyzer . | . . . . . Garrison Access Hacks . | . . . . . Unauthorized Hacks . | . . . . . Terminals . | . . . . . Fabricators . | . . . . . Repair Stations . | . . . . . Recycling Units . | . . . . . Scanalyzers . | . . . . . Garrison Access . | . . . . . Data Cores Recovered . | . . . . . Used . | . . . . . Hacking Detections 3 | . 1 1 . 1 Full Trace Events . | . . . . . Feedback Events . | . . . . . Feedback Blocked . | . . . . . Robot Schematics Acquired . | . . . . . Robots Built . | . . . . . Authchips . | . . . . . Time . | . . . . . Total Robot Build Rating . | . . . . . Part Schematics Acquired . | . . . . . Parts Built . | . . . . . Authchips . | . . . . . Time . | . . . . . Total Part Build Rating . | . . . . . Parts Repaired . | . . . . . Time . | . . . . . Parts Recycled . | . . . . . Recycled Matter . | . . . . . Retrieved Matter . | . . . . . Retrieved Components . | . . . . . Parts Scanalyzed . | . . . . . Part Schematics Acquired . | . . . . . Parts Damaged . | . . . . . Bothacking | -11 -10 -9 -9 -8 ------------ Run | Yrd Mat Mat Min Mat Used RIF Installer . | . . . . . Robots Hacked . | . . . . . Non-combat . | . . . . . Combat . | . . . . . Robot Hacks Applied . | . . . . . Relay Couplers Released . | . . . . . Fabnet Peak Effective % . | . . . . . Robots Rewired . | . . . . . Allies Hacked . | . . . . . Hacks Repelled . | . . . . . Allies | -11 -10 -9 -9 -8 -------- Run | Yrd Mat Mat Min Mat Total Allies . | . . . . . Largest Group . | . . . . . Highest-Rated Group . | . . . . . Highest-Rated Ally . | . . . . . Total Orders . | . . . . . Ally Attacks . | . . . . . Total Damage . | . . . . . Kills . | . . . . . Allies Corrupted . | . . . . . Allies Melted . | . . . . . Intel | -11 -10 -9 -9 -8 ------- Run | Yrd Mat Mat Min Mat Robot Analysis Total . | . . . . . Derelict Logs Recovered . | . . . . . Drone Launches . | . . . . . Drone Recoveries . | . . . . . Exploration | -11 -10 -9 -9 -8 ------------- Run | Yrd Mat Mat Min Mat Turns Passed 1450 | 59 548 189 369 285 Spaces Moved 1292 | 55 390 139 466 242 Core 107 | 10 1 . . 96 Treads . | . . . . . Legs 15 | . . . . 15 Wheels 576 | 45 389 139 3 . Hover . | . . . . . Flight 594 | . . . 463 131 Fastest Speed 34 | 50 90 105 34 34 Average Speed 77 | 82 102 108 36 95 Slowest Speed 450 | 90 450 115 282 130 Overloaded Moves . | . . . . . Propulsion Burnouts . | . . . . . Robots Hopped 3 | . . . 3 . Cave-ins Triggered . | . . . . . Exploration Rate (%) 31 | 3 42 21 63 29 Regions Visited 4 Branch Regions 1 Pre-discovered Areas . | . . . . . Known Exits Taken . | . . . . . Unknown Exits Taken 4 | 1 1 1 1 . Scrap Searched . | . . . . . Spaces Dug . | . . . . . Terrain Destroyed 23 | . . 23 . . Melee . | . . . . . Projectile . | . . . . . AOE 23 | . . 23 . . Terrain Rammed . | . . . . . Walls Destroyed . | . . . . . Machines Disabled . | . . . . . Actions | -11 -10 -9 -9 -8 --------- Run | Yrd Mat Mat Min Mat Total 1666 | 67 515 159 643 282 Wait 268 | . 96 10 148 14 Move 1282 | 54 389 138 459 242 Hop 3 | . . . 3 . Pick Up 15 | 7 8 . . . Fast Attach 19 | 2 9 . 3 5 Attach 12 | 4 3 1 4 . Detach 2 | . . . 2 . Swap 1 | . . . 1 . Drop 4 | . 1 . 3 . Fire 46 | . 9 10 20 7 Melee . | . . . . . Ram 14 | . . . . 14 Kick . | . . . . . Crush . | . . . . . Escape Stasis . | . . . . . Rewire . | . . . . . Trap . | . . . . . Miscellaneous . | . . . . . Route ------- -11/Scrapyard -10/Materials -9/Materials (discovered 2 exits: [*Min x2]) -9/Mines -8/Materials History --------- Turn | Location | Event 7 | -11/Scrapyard | Discovered new exit (range 16) 60 | -11/Scrapyard | Entered Materials 313 | -10/Materials | Build established: Mutant 454 | -10/Materials | Discovered new exit (range 16) 608 | -10/Materials | Entered another Materials area 608 | -9/Materials | Evolved 2 slots: Propulsion x1, Utility x1 780 | -9/Materials | Discovered new exit (range 15) 783 | -9/Materials | Discovered new exit (range 10) 797 | -9/Materials | Entered Mines 879 | -9/Mines | Discovered new exit (range 9) 886 | -9/Mines | Joined a pair of Derelicts in attacking an 0b10 outpost 1066 | -9/Mines | Assembled infested the area 1071 | -9/Mines | Assisted by a Guerilla fighting off Assembled 1128 | -9/Mines | Build established: Scavenger-Mutant 1166 | -9/Mines | Entered Materials 1166 | -8/Materials | Evolved 2 slots: Utility x1, Weapon x1 1316 | -8/Materials | Core integrity fell below 50% 1339 | -8/Materials | Core integrity fell below 20% 1364 | -8/Materials | Lost 9 parts (1p3n3u2w) 1451 | -8/Materials | Destroyed by H-55 Commando with Assault Rifle Last Messages --------------- 01335_ Slammed into W-25 Informer. 01337_ Penetrated by Slug. 01337_ U-05 Engineer destroyed. 01338_ Slammed into H-55 Commando. 01339_ System corrupted: Heat flow error (+185). 01339_ Slammed into W-25 Informer. 01343_ Slug penetrates Wall. 01348_ Slammed into U-05 Engineer. 01349_ Slammed into W-25 Informer. 01351_ Slammed into U-05 Engineer. 01359_ Slug penetrates Wall. 01376_ Slammed into A-02 Transporter. 01377_ Penetrated by Slug. 01378_ Slammed into A-02 Transporter. 01380_ Penetrated by Slug. 01414_ System corrupted: Energy discharge (-24). 01414_ Sml. Storage Unit destroyed. 01426_ Acquired Terrain Scanner. 01429_ Acquired Titanium Leg. 01449_ Acquired System Shield. Map ----- +----------------------------------------------------+ | | | | | | | | | | | | | | | | | | | | | | | | | ??????????????????????????????????? | | ??????????????????????????????????? | | ??????????????????????????????????? | | ?????????????????????#????????????? | | ?????????????????? ???????????????? | | ??????????????????????????????????? | | ????????? ????????????????????????? | | ??????????????????????????????????? | | ??? ??????????????? ??????????????? | | ????????######????????????????????? | | ????????# !#????????????????????? | | ????????#!! #????????????????????? | | ????????# ! #????????????????????? | | ????????#!@ h#######+########?????? | | ????????# gg ???? | | ????????#" # ???? | | ????????#T # " !!! ???? | | ????????#" # T !! # ? ? | | ????????# # " !! #? | | ????????###### #? | | ?????????????# #? | | ???????????### *! #? | | ???????????# ** """ #? | | ???????????# *! """ #? ? | | ???????????# """ #?# #? | | ???????????# #?# #? | | ??????? ???# #?# #? | | ???????????# ###### #?# #? | | ???????????# #####???##+##/### ## | | ?????????? ????????# # # | | ?????????# ????????# # # | | ???????? ????????+ + # | | ???????+## ?????????# # # | | ?????????# ?????????# # # | | ?????????#?#?????????+ ### ### | | ?????????????????????#+######?# #?? | | ??????????????????????????????# #?? | | ??????????????????????????????# ### | +----------------------------------------------------+ Best States ------------- Heat Dissipation 31 Energy Generation 10 Energy Capacity 250 Matter Stores 300 Matter Capacity 300 Sight Range 16 Terrain Scan Range 16 Terrain Scan Density 10 ECM Strength 1 Evasion (%) 63 Defensive Hacking 10 Item Schematics ----------------- None Robot Schematics ------------------ None Fabricated ------------ Nothing Alien Tech Used ----------------- None Achievements -------------- None Challenges ------------ None Game ------ Seed ThunderCoilNetwork Manual? 0 Play Time 00:29:05 Cumulative 8.4 hours Start 2024.06.18 @ 02:18:39 End 2024.06.18 @ 02:54:10 Sessions 1 Manual Loads 0 Difficulty Rogue Special Mode None Game No. 6 Rogue 6 Adventurer 0 Explorer 0 Win Type - Total 0 Types 0/0/0/0/0/0/0/0/0 Lore% 5 Gallery% 9 Achievement% 11 Wizard Run 0 Options --------- Layout 1 ASCII 0 Keyboard 0 Movement Mouse Keybinds 0 Fullscreen 2 Font 24/X11 Map View 50x35 Zoom Use 0% Tactical HUD 1 Map Filters NONE Filters NONE Steam 0 RUN: 38724f5d-f09f-4ca7-99d5-7c09e9f8fa77